{"text_format":"1","workbook":"xlsx","n_sheets":7,"sheets":["Setting Parameters","Selection Result","AS Series Catalogue","Language","ProductLanguage","機種清單","Language Mapping"],"not_rendered":{"charts":0,"images":59,"macros":1,"external_links":3,"defined_names":42,"comments":0,"pivot_tables":0},"unopened":[],"bounds":{"document_bytes":16777216,"sheet_cells":100000,"rows_first":2000,"rows_last":500,"rows_between":2000,"halvings":0,"cell_chars":16384,"cell_head_chars":4096},"cells_cut":0,"cells_raw":0,"read":"whole","date_system":"1900"}

{"sheet":"Setting Parameters","index":0,"n_rows":65,"n_cols":26,"rows_kept":65,"cut":false,"hidden":false,"merged":[[186,3,186,11],[187,3,187,11],[188,3,188,11],[189,3,189,11],[190,3,190,11],[181,3,181,11],[182,3,182,11],[183,3,183,11],[184,3,184,11],[185,3,185,11],[196,3,196,11],[197,3,197,11],[198,3,198,11],[199,3,199,11],[191,3,191,11],[192,3,192,11],[193,3,193,11],[194,3,194,11],[195,3,195,11],[179,3,179,11],[180,3,180,11],[171,3,171,11],[172,3,172,11],[173,3,173,11],[174,3,174,11],[175,3,175,11],[166,3,166,11],[167,3,167,11],[168,3,168,11],[169,3,169,11],[170,3,170,11],[176,3,176,11],[177,3,177,11],[178,3,178,11],[161,3,161,11],[162,3,162,11],[163,3,163,11],[164,3,164,11],[165,3,165,11],[156,3,156,11],[157,3,157,11],[158,3,158,11],[159,3,159,11],[160,3,160,11],[151,3,151,11],[152,3,152,11],[153,3,153,11],[154,3,154,11],[155,3,155,11],[146,3,146,11],[147,3,147,11],[148,3,148,11],[149,3,149,11],[150,3,150,11],[141,3,141,11],[142,3,142,11],[143,3,143,11],[144,3,144,11],[145,3,145,11],[136,3,136,11],[137,3,137,11],[138,3,138,11],[139,3,139,11],[140,3,140,11],[131,3,131,11],[132,3,132,11],[133,3,133,11],[134,3,134,11],[135,3,135,11],[126,3,126,11],[127,3,127,11],[128,3,128,11],[129,3,129,11],[130,3,130,11],[121,3,121,11],[122,3,122,11],[123,3,123,11],[124,3,124,11],[125,3,125,11],[116,3,116,11],[117,3,117,11],[118,3,118,11],[119,3,119,11],[120,3,120,11],[111,3,111,11],[112,3,112,11],[113,3,113,11],[114,3,114,11],[115,3,115,11],[106,3,106,11],[107,3,107,11],[108,3,108,11],[109,3,109,11],[110,3,110,11],[101,3,101,11],[102,3,102,11],[103,3,103,11],[104,3,104,11],[105,3,105,11],[96,3,96,11],[97,3,97,11],[98,3,98,11],[99,3,99,11],[100,3,100,11],[91,3,91,11],[92,3,92,11],[93,3,93,11],[94,3,94,11],[95,3,95,11],[86,3,86,11],[87,3,87,11],[88,3,88,11],[89,3,89,11],[90,3,90,11],[81,3,81,11],[82,3,82,11],[83,3,83,11],[84,3,84,11],[85,3,85,11],[76,3,76,11],[77,3,77,11],[78,3,78,11],[79,3,79,11],[80,3,80,11],[71,3,71,11],[72,3,72,11],[73,3,73,11],[74,3,74,11],[75,3,75,11],[66,3,66,11],[67,3,67,11],[68,3,68,11],[69,3,69,11],[70,3,70,11],[61,3,61,11],[62,3,62,11],[63,3,63,11],[64,3,64,11],[65,3,65,11],[56,3,56,11],[57,3,57,11],[58,3,58,11],[59,3,59,11],[60,3,60,11],[0,0,0,8],[0,9,0,10],[13,3,13,11],[14,3,14,11],[6,3,6,11],[45,3,45,11],[46,3,46,11],[22,3,22,11],[23,3,23,11],[24,3,24,11],[25,3,25,11],[26,3,26,11],[27,3,27,11],[28,3,28,11],[29,3,29,11],[30,3,30,11],[31,3,31,11],[32,3,32,11],[33,3,33,11],[34,3,34,11],[35,3,35,11],[36,3,36,11],[40,3,40,11],[37,3,37,11],[41,3,41,11],[42,3,42,11],[4,3,4,11],[1,0,1,11],[2,0,2,1],[2,3,2,11],[3,3,3,11],[19,3,19,11],[20,3,20,11],[21,3,21,11],[15,3,15,11],[16,3,16,11],[17,3,17,11],[18,3,18,11],[5,3,5,11],[7,3,7,11],[8,3,8,11],[9,3,9,11],[10,3,10,11],[11,3,11,11],[12,3,12,11],[38,3,38,11],[39,3,39,11],[48,3,48,11],[49,3,49,11],[50,3,50,11],[51,3,51,11],[52,3,52,11],[53,3,53,11],[54,3,54,11],[55,3,55,11],[43,3,43,11],[44,3,44,11],[47,3,47,11]]}
["Delta AS Series PLC Selection Tool V2.1",null,null,null,null,null,null,null,null,"Language/語言",null,"ENGLISH",null,null,null,null,null,null,null,null,null,null,null,"AS200_CPU","AS200_CPU","AS200_CPU"]
["Disclaimer: This selection tool is intended to support users in finding the appropriate products and no warranties are made as to its accuracy or reliability. Users should confirm the search result before any purchases are made.",null,null,null,null,null,null,null,null,null,null,null,null,null,null,null,null,null,null,null,null,null,null,"AS228T-A","AS228T-A","AS228T-A"]
["Product Selection",null,null,"Product Features ",null,null,null,null,null,null,null,null,null,null,null,null,null,null,null,null,null,null,null,"AS228P-A","AS228P-A","AS228P-A"]
["CPU Module",null,null,null,null,null,null,null,null,null,null,null,null,null,null,null,null,null,null,null,null,null,null,"AS228R-A","AS228R-A","AS228R-A"]
["Which CPU module series is required?","NONE",null,null,null,null,null,null,null,null,null,null,null,null,null,null,null,null,null,null,null,null,null,"AS218TX-A","AS218TX-A","AS218TX-A"]
[null,null,null,null,null,null,null,null,null,null,null,null,null,null,null,null,null,null,null,null,null,null,null,"AS218PX-A","AS218PX-A","AS218PX-A"]
[null,null,null,null,null,null,null,null,null,null,null,null,null,null,null,null,null,null,null,null,null,null,null,"AS218RX-A","AS218RX-A","AS218RX-A"]
[null,null,null,null,null,null,null,null,null,null,null,null,null,null,null,null,null,null,null,null,null,null,null,"AS300_CPU","AS300_CPU","AS300_CPU"]
[null,null,null,null,null,null,null,null,null,null,null,null,null,null,null,null,null,null,null,null,null,null,null,"AS332T-A","AS332T-A","AS332T-A"]
[null,null,null,null,null,null,null,null,null,null,null,null,null,null,null,null,null,null,null,null,null,null,null,"AS332P-A","AS332P-A","AS332P-A"]
[null,null,null,null,null,null,null,null,null,null,null,null,null,null,null,null,null,null,null,null,null,null,null,"AS324MT-A","AS324MT-A","AS324MT-A"]
[null,null,null,null,null,null,null,null,null,null,null,null,null,null,null,null,null,null,null,null,null,null,null,"AS320T-B","AS320T-B","AS320T-B"]
[null,null,null,null,null,null,null,null,null,null,null,null,null,null,null,null,null,null,null,null,null,null,null,"AS320P-B","AS320P-B","AS320P-B"]
[null,null,null,null,null,null,null,null,null,null,null,null,null,null,null,null,null,null,null,null,null,null,null,"AS300N-A","AS300N-A","AS300N-A"]
[]
[null,null,null,null,null,null,null,null,null,null,null,null,null,null,null,null,null,null,null,null,null,null,null,"Power Module","Power Module","Power Module"]
[null,null,null,null,null,null,null,null,null,null,null,null,null,null,null,null,null,null,null,null,null,null,null,"AS-PS02","AS-PS02","AS-PS02"]
[null,null,null,null,null,null,null,null,null,null,null,null,null,null,null,null,null,null,null,null,null,null,null,"AS-PS02A","AS-PS02A","AS-PS02A"]
[]
[null,null,null,null,null,null,null,null,null,null,null,null,null,null,null,null,null,null,null,null,null,null,null,"Function Card","Function Card","Function Card"]
[null,null,null,null,null,null,null,null,null,null,null,null,null,null,null,null,null,null,null,null,null,null,null,"无","NONE","無"]
[null,null,null,null,null,null,null,null,null,null,null,null,null,null,null,null,null,null,null,null,null,null,null,"AS-F232","AS-F232","AS-F232"]
[null,null,null,null,null,null,null,null,null,null,null,null,null,null,null,null,null,null,null,null,null,null,null,"AS-F422","AS-F422","AS-F422"]
[null,null,null,null,null,null,null,null,null,null,null,null,null,null,null,null,null,null,null,null,null,null,null,"AS-F485","AS-F485","AS-F485"]
[null,null,null,null,null,null,null,null,null,null,null,null,null,null,null,null,null,null,null,null,null,null,null,"AS-F2AD","AS-F2AD","AS-F2AD"]
[null,null,null,null,null,null,null,null,null,null,null,null,null,null,null,null,null,null,null,null,null,null,null,"AS-F2DA","AS-F2DA","AS-F2DA"]
[null,null,null,null,null,null,null,null,null,null,null,null,null,null,null,null,null,null,null,null,null,null,null,"AS-FCOPM","AS-FCOPM","AS-FCOPM"]
[null,null,null,null,null,null,null,null,null,null,null,null,null,null,null,null,null,null,null,null,null,null,null,"AS-FEN02","AS-FEN02","AS-FEN02"]
[]
[]
[null,null,null,null,null,null,null,null,null,null,null,null,null,null,null,null,null,null,null,null,null,null,null,"YES/NO","YES/NO","YES/NO"]
[null,null,null,null,null,null,null,null,null,null,null,null,null,null,null,null,null,null,null,null,null,null,null,"是","YES","是"]
[null,null,null,null,null,null,null,null,null,null,null,null,null,null,null,null,null,null,null,null,null,null,null,"否","NO","否"]
[]
[null,null,null,null,null,null,null,null,null,null,null,null,null,null,null,null,null,null,null,null,null,null,null,"Cable Length","Cable Length","Cable Length"]
[null,null,null,null,null,null,null,null,null,null,null,null,null,null,null,null,null,null,null,null,null,null,null,"1M","1M","1M"]
[null,null,null,null,null,null,null,null,null,null,null,null,null,null,null,null,null,null,null,null,null,null,null,"2M","2M","2M"]
[null,null,null,null,null,null,null,null,null,null,null,null,null,null,null,null,null,null,null,null,null,null,null,"3M","3M","3M"]
[]
[null,null,null,null,null,null,null,null,null,null,null,null,null,null,null,null,null,null,null,null,null,null,null,"Cable Type","Cable Type","Cable Type"]
[null,null,null,null,null,null,null,null,null,null,null,null,null,null,null,null,null,null,null,null,null,null,null,"1分2","ONE to TWO","1分2"]
[null,null,null,null,null,null,null,null,null,null,null,null,null,null,null,null,null,null,null,null,null,null,null,"1對1","ONE to ONE","1對1"]
[]
[null,null,null,null,null,null,null,null,null,null,null,null,null,null,null,null,null,null,null,null,null,null,null,"DIO Module","DIO Module","DIO Module"]
[null,null,null,null,null,null,null,null,null,null,null,null,null,null,null,null,null,null,null,null,null,null,null,"数字输入与输出混合","DI/DO Mix","數位輸入與輸出混合"]
[null,null,null,null,null,null,null,null,null,null,null,null,null,null,null,null,null,null,null,null,null,null,null,"数字输入与输出分开","DI/DO Only","數位輸入與輸出分開"]
[]
[null,null,null,null,null,null,null,null,null,null,null,null,null,null,null,null,null,null,null,null,null,null,null,"Points","Points","Points"]
[null,null,null,null,null,null,null,null,null,null,null,null,null,null,null,null,null,null,null,null,null,null,null,"8点","8 Points","8點"]
[null,null,null,null,null,null,null,null,null,null,null,null,null,null,null,null,null,null,null,null,null,null,null,"16点","16 Points","16點"]
[null,null,null,null,null,null,null,null,null,null,null,null,null,null,null,null,null,null,null,null,null,null,null,"32点","32 Points","32點"]
[null,null,null,null,null,null,null,null,null,null,null,null,null,null,null,null,null,null,null,null,null,null,null,"64点","64 Points","64點"]
[]
[null,null,null,null,null,null,null,null,null,null,null,null,null,null,null,null,null,null,null,null,null,null,null,"AIO Module","AIO Module","AIO Module"]
[null,null,null,null,null,null,null,null,null,null,null,null,null,null,null,null,null,null,null,null,null,null,null,"模拟输入与输出混合","AI/AO Mix","類比輸入與輸出混合"]
[null,null,null,null,null,null,null,null,null,null,null,null,null,null,null,null,null,null,null,null,null,null,null,"摸拟输入与输出分开","AI/AO Only","類比輸入與輸出分開"]
[]
[]
[]
[null,null,null,null,null,null,null,null,null,null,null,null,null,null,null,null,null,null,null,null,null,null,null,"Function Card","Function Card","Function Card"]
[null,null,null,null,null,null,null,null,null,null,null,null,null,null,null,null,null,null,null,null,null,null,null,"无","NONE","無"]
[null,null,null,null,null,null,null,null,null,null,null,null,null,null,null,null,null,null,null,null,null,null,null,"AS-F232","AS-F232","AS-F232"]
[null,null,null,null,null,null,null,null,null,null,null,null,null,null,null,null,null,null,null,null,null,null,null,"AS-F422","AS-F422","AS-F422"]
[null,null,null,null,null,null,null,null,null,null,null,null,null,null,null,null,null,null,null,null,null,null,null,"AS-F485","AS-F485","AS-F485"]
[null,null,null,null,null,null,null,null,null,null,null,null,null,null,null,null,null,null,null,null,null,null,null,"AS-FCOPM","AS-FCOPM","AS-FCOPM"]

{"sheet":"Selection Result","index":1,"n_rows":2,"n_cols":4,"rows_kept":2,"cut":false,"hidden":false,"merged":[[0,0,0,3]]}
["Selection Result"]
["Type","Model Number","Quantity","Description"]

{"sheet":"AS Series Catalogue","index":2,"n_rows":81,"n_cols":24,"rows_kept":81,"cut":false,"hidden":false,"merged":[[80,0,80,3],[80,4,80,5],[80,7,80,8],[80,11,80,15],[77,0,77,26],[78,0,78,3],[78,4,78,5],[78,7,78,8],[78,9,78,10],[78,11,78,15],[79,0,79,3],[79,4,79,5],[79,7,79,8],[79,9,79,10],[79,11,79,15],[59,3,59,4],[59,0,59,2],[59,7,59,11],[57,12,57,14],[58,12,58,14],[59,12,59,14],[69,3,69,4],[69,8,69,11],[69,0,69,2],[69,5,69,7],[65,3,65,4],[66,0,66,2],[66,3,66,4],[58,0,58,2],[58,3,58,4],[58,7,58,11],[61,0,61,26],[62,0,62,2],[62,3,62,4],[62,5,62,7],[62,8,62,11],[68,8,68,11],[65,8,65,11],[66,8,66,11],[45,0,45,2],[45,3,45,4],[45,6,45,7],[45,8,45,9],[45,10,45,11],[45,12,45,16],[46,0,46,2],[46,3,46,4],[46,6,46,7],[46,8,46,9],[46,10,46,11],[5,0,6,2],[7,3,7,4],[7,6,7,7],[7,0,7,2],[8,3,8,4],[8,6,8,7],[9,3,9,4],[9,6,9,7],[10,3,10,4],[10,6,10,7],[8,0,10,2],[49,6,49,7],[49,8,49,9],[49,10,49,11],[49,0,49,2],[48,12,49,16],[11,0,13,2],[11,3,11,4],[11,6,11,7],[12,3,12,4],[12,6,12,7],[13,3,13,4],[13,6,13,7],[40,3,40,4],[40,9,40,10],[41,3,41,4],[41,9,41,10],[40,0,41,2],[36,11,41,15],[47,3,47,4],[47,6,47,7],[47,8,47,9],[47,10,47,11],[46,12,47,16],[47,0,47,2],[17,0,17,2],[17,3,17,4],[17,9,17,10],[17,11,17,12],[17,13,17,17],[2,0,4,2],[2,3,2,4],[2,6,2,7],[0,0,0,26],[1,0,1,2],[1,3,1,4],[1,6,1,7],[1,23,1,28],[3,3,3,4],[3,6,3,7],[4,3,4,4],[4,6,4,7],[16,0,16,26],[5,3,5,4],[5,6,5,7],[6,3,6,4],[6,6,6,7],[2,23,7,28],[8,23,13,28],[18,0,18,2],[18,3,18,4],[18,9,18,10],[18,11,18,12],[18,13,18,17],[19,0,19,2],[19,3,19,4],[19,9,19,10],[19,11,19,12],[19,13,19,17],[20,0,20,2],[20,3,20,4],[20,9,20,10],[20,11,20,12],[20,13,20,17],[21,0,21,2],[21,3,21,4],[21,9,21,10],[21,11,21,12],[21,13,21,17],[22,0,22,2],[22,3,22,4],[22,9,22,10],[22,11,22,12],[22,13,22,17],[23,0,23,2],[23,3,23,4],[23,9,23,10],[23,11,23,12],[23,13,23,17],[24,0,24,2],[24,3,24,4],[24,9,24,10],[24,11,24,12],[24,13,24,17],[25,0,25,2],[25,3,25,4],[25,9,25,10],[25,11,25,12],[25,13,25,17],[26,0,26,2],[26,3,26,4],[26,9,26,10],[26,11,26,12],[26,13,26,17],[27,0,27,2],[27,3,27,4],[27,9,27,10],[27,11,27,12],[27,13,27,17],[28,0,28,2],[28,3,28,4],[28,9,28,10],[28,11,28,12],[28,13,28,17],[29,0,29,2],[29,3,29,4],[29,9,29,10],[29,11,29,12],[29,13,29,17],[36,3,36,4],[36,9,36,10],[30,0,30,2],[30,3,30,4],[30,9,30,10],[30,11,30,12],[30,13,30,17],[31,0,31,2],[31,3,31,4],[31,9,31,10],[31,11,31,12],[31,13,31,17],[32,0,32,2],[32,3,32,4],[32,9,32,10],[32,11,32,12],[32,13,32,17],[34,0,34,26],[35,0,35,2],[35,3,35,4],[35,9,35,10],[35,11,35,15],[36,0,36,2],[37,0,37,2],[37,3,37,4],[37,9,37,10],[38,0,39,2],[38,3,39,4],[38,9,38,10],[39,9,39,10],[56,0,56,26],[57,0,57,2],[57,3,57,4],[57,7,57,11],[54,0,54,2],[54,3,54,4],[54,8,54,9],[54,10,54,14],[48,0,48,2],[48,3,48,4],[48,6,48,7],[48,8,48,9],[48,10,48,11],[53,0,53,2],[53,3,53,4],[53,8,53,9],[53,10,53,14],[73,11,73,15],[74,0,75,3],[74,4,75,5],[74,7,74,8],[74,9,74,10],[74,11,75,15],[75,7,75,8],[75,9,75,10],[73,0,73,3],[73,4,73,5],[73,7,73,8],[73,9,73,10],[44,0,44,16],[52,0,52,16],[67,8,67,11],[63,8,63,11],[64,8,64,11],[71,0,71,26],[72,0,72,3],[72,4,72,5],[72,7,72,8],[72,9,72,10],[72,11,72,15],[63,0,63,2],[63,3,63,4],[63,5,63,7],[64,0,64,2],[64,3,64,4],[67,0,67,2],[67,3,67,4],[67,5,67,7],[68,0,68,2],[68,3,68,4],[68,5,68,7],[65,0,65,2],[49,3,49,4]]}
["CPU MODULE"]
["Product Photo",null,null,"Model Number",null,"Program Capacity(Steps)","Data Register(words)(D,W)",null,"I/O Points","Maximum Extension","Local DI Points","Local DO Points","Micro SD Interface","Funciton Card","Serial Communication Port","Ethernet Port","Output Type","Number of Axis(High Speed Position Input)","Number of Axis(High Speed Position Output)","Basic Instruction Execution(LD) Time","CAN communication port","Analog Input","Analog Output","Dimensions"]
[null,null,null,"AS332T-A",null,"128K","(30000, 30000)",null,1024,32,16,16,"Y",2,2,1,"NPN",6,6,"25ns",0,0,0]
[null,null,null,"AS332P-A",null,"128K","(30000, 30000)",null,1024,32,16,16,"Y",2,2,1,"PNP",6,6,"25ns",0,0,0]
[null,null,null,"AS324MT-A",null,"128K","(30000, 30000)",null,1024,32,12,12,"Y",2,2,1,"Diff.+NPN",6,6,"25ns",0,0,0]
[null,null,null,"AS320T-B",null,"128K","(30000, 30000)",null,1024,32,8,12,"Y",2,2,1,"NPN",4,6,"25ns",0,0,0]
[null,null,null,"AS320P-B",null,"128K","(30000, 30000)",null,1024,32,8,12,"Y",2,2,1,"PNP",4,6,"25ns",0,0,0]
[null,null,null,"AS300N-A",null,"128K","(30000, 30000)",null,1024,32,0,0,"Y",2,2,1,"None",0,0,"25ns",0,0,0]
["圖示",null,null,"AS228T-A",null,"64K","(30000, 30000)",null,1024,32,16,12,"Y",0,2,1,"NPN",4,6,"25ns",1,0,0]
[null,null,null,"AS228P-A",null,"64K","(30000, 30000)",null,1024,32,16,12,"Y",0,2,1,"PNP",4,6,"25ns",1,0,0]
[null,null,null,"AS228R-A",null,"64K","(30000, 30000)",null,1024,32,16,12,"Y",0,2,1,"Relay",4,0,"25ns",1,0,0]
[null,null,null,"AS218TX-A",null,"64K","(30000, 30000)",null,1024,32,8,6,"Y",0,2,1,"NPN",4,3,"25ns",1,2,2]
[null,null,null,"AS218PX-A",null,"64K","(30000, 30000)",null,1024,32,8,6,"Y",0,2,1,"PNP",4,3,"25ns",1,2,2]
[null,null,null,"AS218RX-A",null,"64K","(30000, 30000)",null,1024,32,8,6,"Y",0,2,1,"Relay",4,0,"25ns",1,2,2]
[]
[]
["DIO MODULE"]
["Product Photo",null,null,"Model Number",null,"Type","Input Points","Output Points","Output Type","Input Signal",null,"Terminal Type",null,"Dimensions"]
[null,null,null,"AS08AM10N-A",null,"DI",8,"N/A","N/A","5~24VDC",null,"Spring-clamp"]
[null,null,null,"AS08AN01T-A",null,"DO","N/A",8,"NPN","N/A",null,"Spring-clamp"]
[null,null,null,"AS08AN01P-A",null,"DO","N/A","N/A","N/A","N/A",null,"Spring-clamp"]
[null,null,null,"AS08AN01R-A",null,"DO","N/A",8,"Relay","N/A",null,"Spring-clamp"]
[null,null,null,"AS16AM10N-A",null,"DI",16,"N/A","N/A","5~24VDC",null,"Spring-clamp"]
[null,null,null,"AS16AP11T-A",null,"DI+DO","無",8,"NPN","5~24VDC",null,"Spring-clamp"]
[null,null,null,"AS16AP11P-A",null,"DI+DO",8,8,"PNP","5~24VDC",null,"Spring-clamp"]
[null,null,null,"AS16AP11R-A",null,"DI+DO",8,8,"Relay","5~24VDC",null,"Spring-clamp"]
[null,null,null,"AS16AN01T-A",null,"D0","N/A",16,"NPN","N/A",null,"Spring-clamp"]
[null,null,null,"AS16AN01P-A",null,"DO","N/A",16,"PNP","N/A",null,"Spring-clamp"]
[null,null,null,"AS16AN01R-A",null,"DO","N/A",16,"Relay","N/A",null,"Spring-clamp"]
[null,null,null,"AS32AM10N-A",null,"DI",32,"N/A","N/A","5~24VDC",null,"MIL Connector"]
[null,null,null,"AS32AN02T-A",null,"DO","N/A",32,"NPN","N/A",null,"MIL Connector"]
[null,null,null,"AS64AM10N-A",null,"DI",64,"N/A","N/A","5~24VDC",null,"MIL Connector"]
[null,null,null,"AS64AN02T-A",null,"DO","N/A",64,"NPN","N/A",null,"MIL Connector"]
[]
["AIO MODULE"]
["Product Photo",null,null,"Model Number",null,"Type","AI Channel","AO Channel","Hardware Resolution","Mode Selection",null,"Dimensions"]
[null,null,null,"AS04AD-A",null,"AI",4,0,"16bit","1~5V\n0~5V\n-5~5V\n0~10V\n4~20mA\n0~20mA\n-20~20mA"]
[null,null,null,"AS04DA-A",null,"AO",0,4,"12bit","0~10V\n-10~10V\n4~20mA\n0~20mA"]
[null,null,null,"AS06XA-A",null,"AI",4,0,"16bit","1~5V\n0~5V\n-5~5V\n0~10V\n4~20mA\n0~20mA\n-20~20MA"]
[null,null,null,null,null,"AO",0,2,"12bit","0~10V\n-10~10V\n4~20mA\n0~20mA"]
[null,null,null,"AS08AD-B",null,"AI",8,0,"16bit","1~5V\n0~5V\n-5~5V\n0~10V"]
[null,null,null,"AS08AD-C",null,"AI",8,0,"16bit","4~20mA\n0~20mA\n-20~20mA"]
[]
[]
["Temperature Module"]
["Product Photo",null,null,"Model Number",null,"Channel","Hardware Resolution",null,"Conversion Time",null,"Mode Selection",null,"Dimensions"]
[null,null,null,"AS04RTD-A",null,4,"0.1°C/0.1°F",null,"200ms/Channel",null,"Pt100  Ni100  Pt1000  Ni1000  JPt100  LG -Ni100  Cu50  Cu100         Input impedance         0~300Ω     0~3000Ω"]
[null,null,null,"AS06RTD-A",null,6,"0.1°C/0.1°F",null,"200ms/Channel",null,"Pt100  Ni100  Pt1000  Ni1000  JPt100  LG -Ni100  Cu50  Cu100         Input impedance         0~300Ω     0~3000Ω"]
[null,null,null,"AS04TC-A",null,4,"0.1°C/0.1°F",null,"200ms/Channel",null,"J、K、R、S、T、E、N、B    OR     -100~+100 mV"]
[null,null,null,"AS08TC-A",null,8,"0.1°C/0.1°F",null,"200ms/Channel",null,"J、K、R、S、T、E、N、B    OR     -100~+100 mV"]
[]
[]
["Load Cell Module"]
["Product Photo",null,null,"Model Number",null,"Channel","Hardware Resolution","Conversion Time","Mode Selection",null,"Dimensions"]
[null,null,null,"AS02LC-A",null,2,"24bit","200ms/   Channel","0~1\n0~2\n0~4\n0~6\n0~20\n0~40\n0~80\nmV/V\n"]
[]
["NIO MODULE"]
["Product Photo",null,null,"Model Number",null,"Communication Card","Maximum Local CPU","Dimensions",null,null,null,null,"Communication Interface"]
[null,null,null,"AS00SCM-A",null,2,4,null,null,null,null,null,"RS232, RS485, RS422, CAN, Ethernet\n(自行選擇通訊卡決定)"]
[null,null,null,"AS01DNET-A",null,1,4,null,null,null,null,null,"DeviceNet"]
[]
["FUNCTION CARD"]
["Product Photo",null,null,"Model Number",null,"Dimensions",null,null,"Remark"]
[null,null,null,"AS-F232",null,null,null,null,"RS232 Communication Interface\nIsolated Type(Applicable for CPU Modules and NIO Modules)"]
[null,null,null,"AS-F422",null,null,null,null,"RS422 Communication Interface\nIsolated Type(Applicable for CPU Modules)"]
[null,null,null,"AS-F485",null,null,null,null,"RS485 Communication Interface\nIsolated Type(Applicable for CPU Modules)"]
[null,null,null,"AS-F2AD",null,null,null,null,"12bit Analog Input x 2 Ch\nAnalog/Digital Isolated Type(Applicable for CPU Modules)"]
[null,null,null,"AS-F2DA",null,null,null,null,"12bit Analog Output x 2 Ch\nAnalog/Digital Isolated Type(Applicable for CPU Modules)"]
[null,null,null,"AS-FCOPM",null,null,null,null,"CAN Communication Interface\nIsolated Type Built with a Resistance of 121Ω(Applicable for CPU Modules and NIO Modules)"]
[null,null,null,"AS-FEN02",null,null,null,null,"Ethernet Communication Interface\n(Applicable for CPU Modules and NIO Modules)"]
[]
["POWER MODULE"]
["Product Photo",null,null,null,"Model Number",null,"Output","Input Signal",null,"Output Signal",null,"Dimensions"]
[null,null,null,null,"AS-PS02",null,"Bus-bar","100VDC~240VDC",null,"24VDC\n2A"]
[null,null,null,null,"AS-PS02A",null,"Bus-bar","100VDC~240VDC",null,"24VDC\n1.5A"]
[null,null,null,null,null,null,"External IO","100VDC~240VDC",null,"24VDC\n0.5A"]
[]
[]
["Product Photo",null,null,null,"Model Number",null,"pin number","applicable module",null,"Remark",null,"Dimensions"]
[null,null,null,null,"UB-10-IO32D",null,40,"for 40pin MIL high density terminal block"]
[null,null,null,null,"AS-ATXB",null,3,"AS series DC power supply input terminal block"]

{"sheet":"Language","index":3,"n_rows":377,"n_cols":4,"rows_kept":377,"cut":false,"hidden":true,"merged":[]}
[null,"繁體中文","ENGLISH","简体中文"]
["參數設定","參數設定","Setting Parameters","参数设定"]
[null,"台達 AS系列 PLC CPU 選型工具 V2.1","Delta AS Series PLC Selection Tool V2.1","台达 AS系列 PLC CPU 选型工具 V2.1"]
[null,"免責聲明: 本工具提供的結果僅提供參考，針對內容的正確性並不負責與保證，使用者在訂購之前仍需進行確認。","Disclaimer: This selection tool is intended to support users in finding the appropriate products and no warranties are made as to its accuracy or reliability. Users should confirm the search result before any purchases are made.","免责声明: 本工具提供的结果仅提供参考，针对内容的正确性并不负责与保证，使用者在订购之前仍需进行确认。"]
[null,"產品選擇","Product Selection","产品选择"]
[null,"產品特色說明","Product Features ","产品特色说明"]
[]
[null,"清除","Clear","清除"]
[null,"執行","Execute","执行"]
[null,"語言","Language","语言"]
[]
[]
[null,"主機","CPU Module","主机"]
[null,"您喜好哪系列的主機？","Which CPU module series is required?","您想要哪系列的主机？"]
[null,"您喜好哪類型的主機？","What type of CPU module is required?","您想要哪类型的主机？"]
[null,"選擇配置功能卡1","Select the Function Card 1","选择配置功能卡1"]
[null,"選擇配置功能卡2","Select the Function Card 2","选择配置功能卡2"]
[null,"主機是否配置線材與配線板？","Do you need suggestions on the accessory selection for the connection of the CPU Modules? ","主机是否自动配置配件？"]
[null,"主機配件-電纜線長度選擇","Cable Length Selections for CPU Modules:"]
[null,"主機配件-電纜線形式選擇","Cable Type Selections for CPU Modules:"]
[null,"主機配件-配線板是否帶繼電器輸出","External Terminal Module Selections for CPU Modules:"]
[null,"是否配置40PIN轉接座","Do you need a 40-pin terminal adapter?"]
[null,"模組是否配置線材與配線板？","Do you need suggestions on the accessory selection for the connection of the  Module? ","模块是否自动配置配件？"]
[null,"模組配件-電纜線長度選擇","Cable Length Selections for the Modules:"]
[null,"模組配件-電纜線形式選擇","Cable Type Selections for the Modules:"]
[null,"模組配件-配線板是否帶繼電器輸出","External Terminal Module Selections for the Modules:"]
[]
[null,"電源模組","Power Module","电源模块"]
[null,"您喜好哪類型的電源？","What type of power is required?","您想要哪类型的电源？"]
[]
[]
[]
[null,"數位輸入與輸出模組","DI/DO Module","数字输入与输出模块"]
[null,"您想要優先選擇的輸入輸出點組合？","Which combination of the digital I/O points is required? ","您想要优先选择的输入输出点组合？"]
[null,"您總共需要多少數位輸入點？","How many digital input points are required?","您总共需要多少数字输入点？"]
[null,"您總共需要多少數位輸出點(NPN型)？","How many digital output points are required? (NPN Type)","您总共需要多少数字输出点(NPN型)？"]
[null,"您總共需要多少數位輸出點(PNP型)？","How many digital output points are required? (PNP Type)","您总共需要多少数字输出点(PNP型)？"]
[null,"您總共需要多少數位輸出點(繼電器型)？","How many digital output points are required? (Relay Type)","您总共需要多少数字输出点(继电器型)？"]
[null,"您接受多少點的模組？","How many I/O points are required on one module?","您接受多少点的模块？"]
[]
[]
[]
[null,"類比輸入與輸出模組","AI/AO Module","模拟输入与输出模块"]
[null,"您想要優先選擇的類比輸入輸出組合？","Which combination of the analog I/O points is required? ","您想要优先选择的模拟输入输出组合？"]
[null,"您總共需要多少通道的類比輸入模組？","How many channels are required for one analog input module?","您总共需要多少通道的模拟输入模块？"]
[null,"您總共需要多少通道的類比輸出模組？","How many channels are required for one analog output module?","您总共需要多少通道的模拟输出模块？"]
[]
[]
[]
[null,"溫度模組","Temperature Module","温度模块"]
[null,"您總共需要多少通道的RTD溫度模組？","How many channels are required for one RTD temperature module?","您总共需要多少通道的RTD温度模块？"]
[null,"您總共需要多少通道的TC溫度模組？","How many channels are required for one TC temperature module?","您总共需要多少通道的TC温度模块？"]
[]
[]
[]
[null,"秤重模組","Load Cell Module","称重模块"]
[null,"您總共需要多少通道的秤重模組？","How many channels are required for one load cell module?","您总共需要多少通道的称重模块？"]
[]
[]
[]
[null,"通訊模組","Serial Communication Module","通讯模块"]
[null,"需幾台近端的SCM通訊模組？","How many SCM Communication modules are required ?","选用AS系列近端的通讯模块需几台模块？"]
[]
[]
[]
[null,"AS專用遠端模組配置","Remote Module Selection","远程模块配置选择"]
[null,"使用AS系列遠端通訊模組需幾台模組？","How many remote stations are required when using the AS series PLC?","选用AS系列远程的通讯模块需几台模块？"]
[]
[]
[]
["採購清單","採購清單","Selection Result","采购清单"]
[null,"分類","Type","分类"]
[null,"型號","Model Number","型号"]
[null,"數量","Quantity","数量"]
[null,"說明","Description","説明"]
[]
[]
[]
["AS型錄","AS型錄","AS Series Catalogue","AS型录"]
[null,"CPU 模組","CPU MODULE","CPU 模块"]
[null,"圖示","Product Photo","图示"]
[null,"型號","Model Number","型号"]
[null,"程式容量(Steps)","Program Capacity(Steps)","程式容量(Steps)"]
[null,"資料記憶體(words)(D,W)","Data Register(words)(D,W)","数据存储器(words)(D,W)"]
[null,"總點數","I/O Points","总奌数"]
[null,"最大擴充台數","Maximum Extension","最大扩展机台数"]
[null,"內建DI點數","Local DI Points","內建DI奌数"]
[null,"內建DO點數","Local DO Points","內建DO奌数"]
[null,"內建Micro SD卡","Micro SD Interface","內建Micro SD卡"]
[null,"功能卡","Funciton Card","功能卡"]
[null,"內建通訊埠","Serial Communication Port","內建通讯端口"]
[null,"內建乙太網","Ethernet Port","內建以太网"]
[null,"輸出點類型","Output Type","输出奌类型"]
[null,"高速輸入組數","Number of Axis(High Speed Position Input)","高速输入組数"]
[null,"高速輸出組數","Number of Axis(High Speed Position Output)","高速输出轴数"]
[null,"基本指令(LD)執行時間","Basic Instruction Execution(LD) Time","基本指令(LD)运行时间"]
[null,"內建CAN通訊口","CAN communication port","内建CAN通讯口"]
[null,"內建類比輸入","Analog Input","内建模拟输入"]
[null,"內建類比輸出","Analog Output","内建模拟输出"]
[null,"尺寸圖","Dimensions","尺寸图"]
[]
[]
[]
[]
[]
[]
[]
[]
[]
[]
[null,"DIO 模組","DIO MODULE","DIO 模块"]
[null,"圖示","Product Photo","图示"]
[null,"型號","Model Number","型号"]
[null,"型式","Type","型式"]
[null,"輸入點數","Input Points","输入奌数"]
[null,"輸出點數","Output Points","输出奌数"]
[null,"輸出點類型","Output Type","输出奌类型"]
[null,"輸入訊號","Input Signal","输入信号"]
[null,"端子台型式","Terminal Type","端子台型式"]
[null,"尺寸圖","Dimensions","尺寸图"]
[]
[null,"無","N/A","无"]
[null,"彈片型","Spring-clamp","弹片型"]
[null,"高密度牛角座","MIL Connector","高密度牛角座"]
[]
[]
[]
[null,"AIO 模組","AIO MODULE","AIO 模块"]
[null,"圖示","Product Photo","图示"]
[null,"型號","Model Number","型号"]
[null,"型式","Type","型式"]
[null,"AI通道數","AI Channel","AI通道数"]
[null,"AO通道數","AO Channel","AO通道数"]
[null,"解析度","Hardware Resolution","分辨率"]
[null,"模式選擇","Mode Selection","模式选择"]
[null,"尺寸圖","Dimensions","尺寸图"]
[]
[]
[]
[null,"溫度模組","Temperature Module","温度模块"]
[null,"圖示","Product Photo","图示"]
[null,"型號","Model Number","型号"]
[null,"通道數","Channel","通道数"]
[null,"解析度","Hardware Resolution","分辨率"]
[null,"轉換時間","Conversion Time","转换时间"]
[null,"模式選擇","Mode Selection","模式选择"]
[null,"尺寸圖","Dimensions","尺寸图"]
[]
[null,"200ms/通道","200ms/Channel","200ms/通道"]
[null,"Pt100  Ni100  Pt1000  Ni1000  JPt100  LG -Ni100  Cu50  Cu100         輸入阻抗         0~300Ω     0~3000Ω","Pt100  Ni100  Pt1000  Ni1000  JPt100  LG -Ni100  Cu50  Cu100         Input impedance         0~300Ω     0~3000Ω","Pt100  Ni100  Pt1000  Ni1000  JPt100  LG -Ni100  Cu50  Cu100         输入阻抗         0~300Ω     0~3000Ω"]
[]
[null,"200ms/通道","200ms/Channel","200ms/通道"]
[null,"J、K、R、S、T、E、N、B           或             -100~+100 mV","J、K、R、S、T、E、N、B    OR     -100~+100 mV","J、K、R、S、T、E、N、B           或             -100~+100 mV"]
[]
[]
[null,"秤重模組","Load Cell Module","秤重模块"]
[null,"圖示","Product Photo","图示"]
[null,"型號","Model Number","型号"]
[null,"通道數","Channel","通道数"]
[null,"解析度","Hardware Resolution","分辨率"]
[null,"轉換時間","Conversion Time","转换时间"]
[null,"模式選擇","Mode Selection","模式选择"]
[null,"尺寸圖","Dimensions","尺寸图"]
[]
[null,"200ms/通道","200ms/   Channel","200ms/通道"]
[null,"0~1            0~2               0~4             0~6              0~20            0~40            0~80          mV/V","0~1            0~2               0~4             0~6              0~20            0~40            0~80          mV/V","0~1            0~2               0~4             0~6              0~20            0~40            0~80          mV/V"]
[]
[]
[]
[null,"NIO 模組","NIO MODULE","NIO 模块"]
[null,"圖示","Product Photo","图示"]
[null,"型號","Model Number","型号"]
[null,"內建通訊卡或通訊口數量","Communication Card","内建通讯卡数量"]
[null,"CPU近端最多台數","Maximum Local CPU","PU近端最多台数"]
[null,"尺寸圖","Dimensions","尺寸图"]
[null,"通訊界面","Communication Interface","通讯界面"]
[]
[]
[null,"功能卡","FUNCTION CARD","功能卡"]
[null,"圖示","Product Photo","图示"]
[null,"型號","Model Number","型号"]
[null,"尺寸圖","Dimensions","尺寸图"]
[null,"備註","Remark","备註"]
[]
[null,"RS232 通訊介面\n隔離型(適用CPU模組&通訊模組)","RS232 Communication Interface\nIsolated Type(Applicable for CPU Modules and NIO Modules)","RS232通讯介面\n隔离型(適用CPU模块&通讯模块)"]
[null,"RS422 通訊介面\n隔離型(適用CPU模組&通訊模組)","RS422 Communication Interface\nIsolated Type(Applicable for CPU Modules)","RS422通讯介面\n隔离型(適用CPU模块&通讯模块)"]
[null,"RS485 通訊介面\n隔離型(適用CPU模組&通訊模組)","RS485 Communication Interface\nIsolated Type(Applicable for CPU Modules)","RS485通讯介面\n隔离型(適用CPU模块&通讯模块)"]
[null,"12bit Analog Input x 2 Ch\n類比/數位隔離型(適用CPU模組)","12bit Analog Input x 2 Ch\nAnalog/Digital Isolated Type(Applicable for CPU Modules)","12bit Analog Input x 2 Ch\n模拟/数字隔离型(适用CPU模块)"]
[null,"12bit Analog Output x 2 Ch\n類比/數位隔離型(適用CPU模組)","12bit Analog Output x 2 Ch\nAnalog/Digital Isolated Type(Applicable for CPU Modules)","12bit Analog Output x 2 Ch\n模拟/数字隔离型(适用CPU模块)"]
[null,"CAN通訊介面\n隔離型內建121Ω(適用CPU模組&SCM通訊模組)","CAN Communication Interface\nIsolated Type Built with a Resistance of 121Ω(Applicable for CPU Modules and NIO Modules)","CAN通讯介面\n隔离型內建121Ω(適用CPU模块&通讯模块)"]
[null,"Ethernet通訊介面(適用CPU模組&SCM通訊模組)","Ethernet Communication Interface\n(Applicable for CPU Modules and NIO Modules)","Ethernet通讯介面(适用CPU模块&SCM通讯模块)"]
[]
[]
[]
[]
[]
[]
[]
[]
[]
[]
[]
[]
[]
[]
[]
[]
[]
[]
[]
[null,"電源模組","POWER MODULE","电源模块"]
[null,"圖示","Product Photo","图示"]
[null,"型號","Model Number","型号"]
[null,"輸出","Output","输出"]
[null,"輸入訊號","Input Signal","输入信号"]
[null,"輸出訊號","Output Signal","输出信号"]
[null,"尺寸圖","Dimensions","尺寸图"]
[]
[null,"匯流排","Bus-bar","总线"]
[null,"外部IO","External IO","外部IO"]
[]
[]
[]
[]
[]
[]
[null,"配線模組或配件"]
[null,"圖示","Product Photo","图示"]
[null,"型號","Model Number","型号"]
[null,"端子PIN數","pin number","端子PIN数"]
[null,"適用模組","applicable module","适用模组"]
[null,"備註","Remark","备註"]
[null,"尺寸圖","Dimensions","尺寸图"]
[]
[]
[null,"適用於40Pin高度密度(MIL)端子座轉接用(如：AS300主機、AS 32點擴充IO模組)","for 40pin MIL high density terminal block","适用於40pin高度密度(MIL)端子座转接用"]
[null,"AS主機DC電源輸入轉接板","AS series DC power supply input terminal block","AS主机DC电源输入转接板"]
[]
[]
[]
[]
[]
[]
[]
[]
[]
[]
[]
[]
[]
["採購清單產生的說明項","近端通訊模組與功能卡","Proximal Communication Module and Function Card","近端通讯模块與功能卡"]
[null,"功能卡","Function Card","功能卡"]
[]
[]
[]
[]
[]
[]
[]
[]
["採購清單-遠端通訊模組","遠端通訊模組清單-組","The List of Remote Communication Module","远程通讯模块清单-组"]
[]
[]
[]
[]
[]
[]
[]
[]
["採購清單結果顯示","～建議採購配件清單～","~Recommended Accessory List~","～建议采购配件清单～"]
[null,"採購清單已完成","Selection is complete. See the selection result sheet.","采购清单已完成"]
[]
[]
[]
[]
[]
[]
[]
[]
[]
[]
[]
[]
[]
[]
["建議配件","建議配件","Recommened Accessory","建议配件"]
["Canopen","CANopen通訊連接電纜","Cables for the CANopen communication","CANopen通讯连接电缆"]
[]
[]
[]
[]
[]
[]
[]
[]
[]
[]
[]
[]
["MSGBOX"]
["DIO的選擇","DIO 32點以上沒有Relay的輸出，「是否」自動以16點Relay輸出和8點Relay輸出配置","Modules with more than 32 digital inputs/outputs do not come with relay outputs. \nIf YES is selected, the system will assign an apporiate module with 8/16 Relay outputs automatically.","DIO 32点以上没有Relay的输出，「是否」自动以16点Relay输出和8点Relay输出配置"]
["配線版是否帶繼電器的選擇-是","已規劃配線板為Relay輸出，若確定配置請按「是」，若想重新選擇請按「否」","This external terminal module is with Relay output. Click YES to confirm the setting. If not, click NO to select again.","已规划配线板为Relay输出，若确定配置请按「是」，若想重新选择请按「否」"]
["配線版是否帶繼電器的選擇-否","配線設定為不帶Relay輸出，且配置接受點數大於32，無法配置，請重新選擇。","It is required to select an external terminal module with relay outputs if the number of reuired outputs for the relay modules is more than 32.","配线设定为不带Relay输出，且配置接受点数大於32，无法配置，请重新选择。"]
["32點PNP輸出是否以少點數PNP輸出配置-是","DIO 32點以上沒有PNP的輸出，「是否」自動以16點PNP輸出和8點PNP輸出配置","Modules with more than 32 digital inputs/outputs do not come with PNP outputs.    \nIf YES is selected, the system will assign an apporiate module with 8/16 outputs automatically.","DIO 32点以上没有PNP的输出，「是否」自动以16点PNP输出和8点PNP输出配置"]
["32點PNP輸出是否以少點數PNP輸出配置-否","DIO 32點以上無PNP輸出，如不以16點或8點PNP輸出，將無法配置，請修改設定。","Since modules with more than 32 digital inputs/outputs do not come with PNP output, it is suggested to utilize the 16 or 8 PNP inputs/outputs.   Please modify your parameters if 16 or 8 PNP inputs/outputs can not meet with your design.","DIO 32点以上无PNP输出，如不以16点或8点PNP输出，将无法配置，请修改设定。"]
["繼電器配線板選擇","繼電器配線板僅能搭配1分2電纜線，若選擇「是」，將強制配置1對1電纜線，但16點繼電器配線板將無法組合使用，若選擇「否」，請重新設定參數。","The external terminal module with relay outputs can only connect to a one-to-two cable.           If YES is selected, the system will be forced to assign a one-to-one cable. But the external terminal module with 16 relay outputs cannot be used.          IF NO is selected, please modify your parameters.","继电器配线板仅能搭配1分2电缆线，若选择「是」，将强制配置1对1电缆，但16点继电器配线板将无法组合使用，若选择「否」，请重新设定参数。"]
["DIO的選擇_遠端通訊模組","DIO 32點以上沒有Relay的輸出，「是否」自動以16點Relay輸出和8點Relay輸出配置_遠端通訊模組_組","Modules with more than 32 digital inputs/outputs do not come with relay outputs. \nIf YES is selected, the system will assign an apporiate module with 8/16 Relay outputs automatically._The remote communication module ","DIO 32点以上没有Relay的输出，「是否」自动以16点Relay输出和8点Relay输出配置_远程通讯模块_组"]
["DIO的選擇_遠端通訊模組","DIO 32點以上沒有PNP的輸出，「是否」自動以16點PNP輸出和8點PNP輸出配置_遠端通訊模組_組","Modules with more than 32 digital inputs/outputs do not come with PNP outputs.    \nIf YES is selected, the system will assign an apporiate module with 8/16 outputs automatically._The remote communication module ","DIO 32点以上没有PNP的输出，「是否」自动以16点PNP输出和8点PNP输出配置_远程通讯模块_组"]
["DIO的選擇_遠端通訊模組","DIO 32點以上無PNP輸出，如不以16點或8點PNP輸出，將無法配置，請修改設定_遠端通訊模組_組","Since modules with more than 32 digital inputs/outputs do not come with PNP output, it is suggested to utilize the 16 or 8 PNP inputs/outputs.   Please modify your parameters if 16 or 8 PNP inputs/outputs can not meet with your design._The remote communication module ","DIO 32点以上无PNP输出，如不以16点或8点PNP输出，将无法配置，请修改设定_远程通讯模块_组"]
["32點PNP輸出是否以少點數PNP輸出配置-是-遠端","DIO 32點以上沒有PNP的輸出，「是否」自動以16點PNP輸出和8點PNP輸出配置_遠端通訊模組_組","Modules with more than 32 digital inputs/outputs do not come with PNP outputs.    \nIf YES is selected, the system will assign an apporiate module with 8/16 outputs automatically._The remote communication module ","DIO 32点以上没有PNP的输出，「是否」自动以16点PNP输出和8点PNP输出配置_远程通讯模块_组"]
["32點PNP輸出是否以少點數PNP輸出配置-否","DIO 32點以上無PNP輸出，如不以16點或8點PNP輸出，將無法配置，請修改設定_遠端通訊模組_組","Since modules with more than 32 digital inputs/outputs do not come with PNP output, it is suggested to utilize the 16 or 8 PNP inputs/outputs.   Please modify your parameters if 16 or 8 PNP inputs/outputs can not meet with your design._The remote communication module ","DIO 32点以上无PNP输出，如不以16点或8点PNP输出，将无法配置，请修改设定_远程通讯模块_组"]
[]
[]
[]
[]
[]
[]
[]
[]
[]
["最大點數","數位輸入輸出總點數超過1024點，請重新選擇","The total number of the DI/DO points exceeds 1024. Please select again.","数字输入输出总点数超过1024点，请重新选择"]
[null,"模組總數量超過32台，請重新選擇","The total number of the modules exceeds 32 , please select again.","模组总数量超过32台，请重新选择"]
[null,"類比輸入輸出總台數過超16台，請重新選擇","The total number of the AI/AO exceeds 16. Please select again.","模拟输入输出总台数超过16台，请重新选择"]
[null,"配置電纜線和配線板","Cable and External Terminal Modules","配置电缆线和配线板"]
[null,"配件-電纜線","Accessory - Cables","配件-电缆线"]
[null,"配件-配線板","Accessory - External Terminal Modules","配件-配线板"]
[]
[]
[]
[]
[]
[]
[]
[]
[]
[]
[]
[]
[]
[]
[]
[]
[]
[]
[]
[]
[]
[]
[]
[]
[]
[]
[]
[]
[]
[]
[]
[]
[]
[]
["近端通訊模組","需要配備的功能卡1於近端SCM通訊模組","Selections for the function card 1 of the proximal communication module ","需要配备的功能卡1於近端SCM通讯模块"]
[null,"需要配備的功能卡2於近端SCM通訊模組","Selections for the function card 2 of the proximal communication module ","需要配备的功能卡2於近端SCM通讯模块"]
[]
[]
[]
[]
[]
[]
[]
[]
[]
[]
[]
[]
[]
["遠端通訊模組","遠端模組是否自動配置配件","Do you need suggestions on the accessory selection for the connection of the remote Module?","远程模块是否自动配置配件"]
[null,"遠端通訊模組配置_組","Constructions for the remote module","远程通讯模块配置_组"]

{"sheet":"ProductLanguage","index":4,"n_rows":130,"n_cols":4,"rows_kept":130,"cut":false,"hidden":true,"merged":[]}
["機種名稱","產品特色說明-繁中","產品特色說明-英文","產品特色說明-簡中"]
["機種系列"]
["AS200","64K Steps 無內建功能卡，採用彈片型端子座","64K Steps, without function card, spring-clamp terminal block","64K Steps 无内建功能卡，采用弹片型端子座"]
["AS300","128K Steps 內建功能卡，採用高密度(MIC)端子座","128K Steps, with function card, high-density terminal block","128K Steps 内建功能卡，采用高密度(MIC)端子座"]
[]
[]
[]
[]
[]
["AS300"]
["AS332T-A","128K Step, 6軸高速輸出(開集極NPN輸出), 6組高速計數器，內建SD Card、USB與乙太網口","Program capacity:128K steps, 6-axis high speed position output(open-collector NPN outputs), 6 high speed counters, 1x Micro SD interface, 1x USB port, 1x Ethernet port  ","128K Step, 6轴高速输出(开集极NPN输出), 6组高速计数器，内建SD Card、USB与以太网口"]
["AS332P-A","128K Step, 6軸高速輸出(開集極PNP輸出), 6組高速計數器，內建SD Card、USB與乙太網口","Program capacity:128K steps, 6-axis high speed position output(open-collector PNP outputs), 6 high speed counters, 1x Micro SD interface, 1x USB port, 1x Ethernet port  ","128K Step, 6轴高速输出(开集极PNP输出), 6组高速计数器，内建SD Card、USB与以太网口"]
["AS324MT-A","128K Step, 6軸高速輸出(差動輸出2軸+開集極NPN輸出4軸), 6組高速計數器(其中差動輸入2組)，內建SD Card、USB與乙太網口","Program capacity:128K steps, 6-axis high speed position output(2-axis differential output and 4-axis open-collector NPN outputs), 6 high speed counters (including 2x differential inputs), 1x Micro SD interface, 1x USB port, 1x Ethernet port  ","128K Step, 6轴高速输出(差动输出2轴+开集极NPN输出4轴), 6组高速计数器(其中差动输入2组)，内建SD Card、USB与以太网口"]
["AS320T-B","CPU 模組，晶體型（NPN）輸出，內建 Ethernet、RS-485*2、USB 通訊口、Micro SD 卡介面、兩張功能卡（選配）以及 20 點\nIO（8DI+12DO），支援最大 1024 點 I/O，程式容量 128k steps，\n採用脫落式端子","CPU module, NPN output, 1x Ethernet port, 2x RS-485 ports, 1x USB port, 1x Micro SD interface, 2x function cards\n(optional), supporting 20 I/Os (8DI+12DO) and up to 1024 I/Os. Program capacity:128K steps, removable terminal blocks","CPU 模块，晶体型（NPN）输出，内建Ethernet、RS-485*2、USB 通讯口、Micro SD 卡接口、两张功能卡（选配）以及20 点 IO（8DI+12DO），支持最大1024 点I/O，程序容量128k steps，采用脱落式端子"]
["AS320P-B","CPU 模組，晶體型（PNP）輸出，內建 Ethernet、RS-485*2、USB 通訊口、Micro SD 卡介面、兩張功能卡（選配）以及 20 點\nIO（8DI+12DO），支援最大 1024 點 I/O，程式容量 128k steps，\n採用脫落式端子","CPU module, PNP output, 1x Ethernet port , 2x RS-485 ports, 1x USB port, 1x Micro SD interface, 2x function cards\n(optional), supporting 20 I/Os (8DI+12DO) and up to 1024 I/Os. Program capacity:128K steps, removable terminal blocks","CPU 模块，晶体型（PNP）输出，内建Ethernet、RS-485*2、USB 通讯口、Micro SD 卡接口、两张功能卡（选配）以及20 点 IO（8DI+12DO），支持最大1024 点I/O，程序容量128k steps，采用脱落式端子"]
["AS300N-A","CPU 模組，無輸入/輸出點，內建 Ethernet、RS-485*2、USB 通\n訊口、Micro SD 卡介面、兩張功能卡（選配），支援最大 1024\n點 I/O，程式容量 128k steps","CPU module, no I/Os, 1x Ethernet port, 2x RS-485 ports, 1x USB port, 1x Micro SD interface, 2x function cards (optional), and supporting up to 1024 I/Os. Program capacity:128K steps","CPU 模块，无输入/输出点，内建Ethernet、RS-485*2、USB 通讯口、Micro SD 卡接口、两张功能卡（选配），支持最大1024点I/O，程序容量128k steps"]
[]
[]
[]
[]
[]
[]
[]
[]
["AS200"]
["AS228T-A","CPU 模組，晶體型（NPN）輸出，內建 Ethernet、RS-485*2、USB 通訊口、Micro SD 卡介面、CAN 通訊口以及 28 點 IO（16DI+12DO），支援最大 1024 點 I/O，程式容量 64k steps，採用脫落式端子","CPU module, NPN output, 1x Ethernet port , 2x RS-485 ports, 1x USB port, 1x Micro SD interface, CAN communication port, supporting 28 I/Os (16DI+12DO) and up to 1024 I/Os. Program capacity: 64K steps, removable terminal blocks","CPU 模块，晶体型（NPN）输出，内建Ethernet、RS-485*2、USB 通讯口、Micro SD 卡接口、CAN 通讯口以及28 点IO（16DI+12DO），支持最大1024 点I/O，程序容量64k steps，采用脱落式端子"]
["AS228P-A","CPU 模組，晶體型（PNP）輸出，內建 Ethernet、RS-485*2、USB 通訊口、Micro SD 卡介面、CAN 通訊口以及 28 點 IO（16DI+12DO），支援最大 1024 點 I/O，程式容量 64k steps，採用脫落式端子","CPU module, PNP output, 1x Ethernet port , 2x RS-485 ports, 1x USB port, 1x Micro SD interface, CAN communication port, supporting 28 I/Os (16DI+12DO) and up to 1024 I/Os. Program capacity: 64K steps, removable terminal blocks","CPU 模块，晶体型（PNP）输出，内建Ethernet、RS-485*2、USB 通讯口、Micro SD 卡接口、CAN 通讯口以及28 点IO（16DI+12DO），支持最大1024 点I/O，程序容量64k steps，采用脱落式端子"]
["AS228R-A","CPU 模組，繼電器（Relay）輸出，內建 Ethernet、RS-485*2、USB 通訊口、Micro SD 卡介面、CAN 通訊口以及 28 點 IO（16DI+12DO），支援最大 1024 點 I/O，程式容量 64k steps，採用脫落式端子","CPU module, Relay output, 1x Ethernet port , 2x RS-485 ports, 1x USB port, 1x Micro SD interface, CAN communication port, supporting 28 I/Os (16DI+12DO) and up to 1024 I/Os. Program capacity: 64K steps, removable terminal blocks","CPU 模块，继电器（Relay）输出，内建Ethernet、RS-485*2、USB 通讯口、Micro SD 卡接口、CAN 通讯口以及28 点IO（16DI+12DO），支持最大1024 点I/O，程序容量64k steps，采用脱落式端子"]
["AS218TX-A","CPU 模組，晶體型（NPN）輸出，內建 Ethernet、RS-485*2、USB 通訊口、Micro SD 卡介面、CAN 通訊口以及 18 點 IO（8DI+6DO+2AI+2AO），支援最大 1024 點 I/O，程式容量 64k steps，採用脫落式端子","CPU module, NPN output, 1x Ethernet port , 2x RS-485 ports, 1x USB port, 1x Micro SD interface, CAN communication port, supporting 18 I/Os (8DI+6DO+2AI+2AO) and up to 1024 I/Os. Program capacity: 64K steps,  emovable terminal blocks","CPU 模块，晶体型（NPN）输出，内建Ethernet、RS-485*2、USB 通讯口、Micro SD 卡接口、CAN 通讯口以及18 点IO（8DI+6DO+2AI+2AO），支持最大1024 点I/O，程序容量64k steps，采用脱落式端子"]
["AS218PX-A","CPU 模組，晶體型（PNP）輸出，內建 Ethernet、RS-485*2、USB 通訊口、Micro SD 卡介面、CAN 通訊口以及 18 點 IO（8DI+6DO+2AI+2AO），支援最大 1024 點 I/O，程式容量 64k steps，採用脫落式端子","CPU module, PNP output, 1x Ethernet port , 2x RS-485 ports, 1x USB port, 1x Micro SD interface, CAN communication port, supporting 18 I/Os (8DI+6DO+2AI+2AO) and up to 1024 I/Os. Program capacity: 64K steps,  emovable terminal blocks","CPU 模块，晶体型（PNP）输出，内建Ethernet、RS-485*2、USB 通讯口、Micro SD 卡接口、CAN 通讯口以及18 点IO（8DI+6DO+2AI+2AO），支持最大1024 点I/O，程序容量64k steps，采用脱落式端子"]
["AS218RX-A","CPU 模組，繼電器（Relay）輸出，內建 Ethernet、RS-485*2、USB 通訊口、Micro SD 卡介面、CAN 通訊口以及 18 點 IO（8DI+6DO+2AI+2AO），支援最大 1024 點 I/O，程式容量 64k steps，採用脫落式端子","CPU module, Relay output, 1x Ethernet port , 2x RS-485 ports, 1x USB port, 1x Micro SD interface, CAN communication port, supporting 18 I/Os (8DI+6DO+2AI+2AO) and up to 1024 I/Os. Program capacity: 64K steps,  removable terminal blocks","CPU 模块，继电器（Relay）输出，内建Ethernet、RS-485*2、USB 通讯口、Micro SD 卡接口、CAN 通讯口以及18点IO（8DI+6DO+2AI+2AO），支持最大1024 点I/O，程序容量64ksteps，采用脱落式端子"]
[]
[]
[]
[]
[]
[]
[null,"功能卡1","Function Card 1","功能卡1"]
[null,"功能卡2","Function Card 2","功能卡2"]
[]
[]
["AS-F232","RS232通訊卡","RS-232 serial communication card","RS232通讯卡"]
["AS-F422","RS422通訊卡","RS-422 serial communication card","RS422通讯卡"]
["AS-F485","RS485通訊卡","RS-485 serial communication card","RS485通讯卡"]
["AS-F2AD","2通道類比輸入卡","2-channel analog input card","2通道模拟输入卡"]
["AS-F2DA","2通道類比輸出卡","2-channel analog output card","2通道模拟输出卡"]
["AS-FCOPM","CANOpen通訊卡","CANopen communication card","CANOpen通讯卡"]
["AS-FEN02","EtherNet功能卡","EtherNet function card","EtherNet功能卡"]
[]
[]
[]
[]
["DIO","數位輸入與輸出模組","DI/DO Module"]
["AS08AM10N-A","輸入點模組(8點數位輸入)","Digital input module (8 inputs)","输入点模块(8点数字输入)"]
["AS08AN01T-A","輸出點模組(NPN晶體輸出)(8點數位輸出)","Digital output module (NPN transistor, 8 outputs)","输出点模块(NPN晶体输出)(8点数字输出)"]
["AS08AN01P-A","輸出點模組(PNP晶體輸出)(8點數位輸出)","Digital output module (PNP transistor, 8 outputs)","输出点模块(PNP晶体输出)(8点数字输出)"]
["AS08AN01R-A","輸出點模組(繼電器輸出)(8點數位輸出)","Digital output module (Relay output, 8 outputs)","输出点模块(继电器输出)(8点数字输出)"]
["AS16AM10N-A","輸入點模組(16點數位輸入)","Digital input module (16 inputs)","输入点模块(16点数字输入)"]
["AS16AP11T-A","輸入/輸出點模組(NPN晶體輸出)(8點數位輸出,8點數位輸入)","Digital input/output module (NPN transistor, 8 inputs, 8 outputs)","输入/输出点模块(NPN晶体输出)(8点数字输出,8点数字输入)"]
["AS16AP11P-A","輸入/輸出點模組(PNP晶體輸出)(8點數位輸出,8點數位輸入)","Digital input/output module (PNP transistor, 8 inputs, 8 outputs)","输入/输出点模块(PNP晶体输出)(8点数字输出,8点数字输入)"]
["AS16AP11R-A","輸入/輸出點模組(繼電器輸出)(8點數位輸出,8點數位輸入)","Digital input/output module (Relay output, 8 inputs, 8 outputs)","输入/输出点模块(继电器输出)(8点数字输出,8点数字输入)"]
["AS16AN01T-A","輸出點模組(NPN晶體輸出)(16點數位輸出)","Digital output module (NPN transistor, 16 outputs)","输出点模块(NPN晶体输出)(16点数字输出)"]
["AS16AN01P-A","輸出點模組(PNP晶體輸出)(16點數位輸出)","Digital output module (PNP transistor, 16 outputs)","输出点模块(PNP晶体输出)(16点数字输出)"]
["AS16AN01R-A","輸出點模組(繼電器輸出)(16點數位輸出)","Digital output module (Relay output, 16 outputs)","输出点模块(继电器输出)(16点数字输出)"]
["AS32AM10N-A","輸入點模組(32點數位輸入)","Digital input module (32 inputs)","输入点模块(32点数字输入)"]
["AS32AN02T-A","輸出點模組(NPN晶體輸出)(32點數位輸出)","Digital output module (NPN transistor, 32 outputs)","输出点模块(NPN晶体输出)(32点数字输出)"]
["AS64AM10N-A","輸入點模組(64點數位輸入)","Digital input module (64 inputs)","输入点模块(64点数字输入)"]
["AS64AN02T-A","輸出點模組(NPN晶體輸出)(64點數位輸出)","Digital output module (NPN transistor, 64 outputs)","输出点模块(NPN晶体输出)(64点数字输出)"]
[]
[]
[]
[]
[]
[]
["AIO","類比輸入與輸出模組","AI/AO Module"]
["AS04AD-A","類比輸入模組, 16bit解析度(4通道類比輸入)","Analog input module, hardware resolution:16 bits (4-channel analog input)","模拟输入模块, 16bit分辨率(4通道模拟输入)"]
["AS04DA-A","類比輸出模組, 12bit解析度(4通道類比輸出)","Analog output module, hardware resolution:12 bits (4-channel output)","模拟输出模块, 12bit分辨率(4通道模拟输出)"]
["AS06XA-A","類比輸入(16bit)/輸出(12bit)模組(4通道類比輸入，2通道類比輸出)","Analog input/output module, hardware resolution:16 bits(input) / 12 bits(output) (4-channel analog input, 2-channel analog output)","模拟输入(16bit)/输出(12bit)模块(4通道模拟输入，2通道模拟输出)"]
["AS08AD-B","類比輸入模組, 16bit解析度(8通道類比輸入)","Analog input module, hardware resolution:16 bits (8-channel analog input)","模拟输入模块, 16bit分辨率(8通道模拟输入)"]
["AS08AD-C","類比輸入模組, 16bit解析度(8通道類比輸入)","Analog input module, hardware resolution:16 bits (8-channel analog input)","模拟输入模块, 16bit分辨率(8通道模拟输入)"]
[]
[null,"溫度模組","Temperature Module"]
["AS04RTD-A","溫度模組, PT, NI (4通道類比輸入)","Temperature module, sensor type: PT, NI (4-channel analog input)","温度模块, PT, NI (4通道模拟输入)"]
["AS04TC-A","溫度模組(4通道類比輸入)","Temperature module (4-channel analog input)","温度模块(4通道模拟输入)"]
["AS06RTD-A","溫度模組, PT, NI (6通道類比輸入)","Temperature module, sensor type: PT, NI (6-channel analog input)","温度模块, PT, NI (6通道模拟输入)"]
["AS08TC-A","溫度模組(8通道類比輸入)","Temperature module (8-channel analog input)","温度模块(8通道模拟输入)"]
[null,"秤重模組","Load Cell Module"]
["AS02LC-A","秤重模組(2通道類比輸入)","Load cell module (2-channel analog input)","称重模块(2通道模拟输入)"]
[]
[]
["NIO","通訊模組","Serial Communication Module"]
["AS00SCM-A","通訊/遠端模組","Serial communication/Remote I/O module","通讯/远程模块"]
["AS01DNET-A","通訊/遠端模組","Serial communication/Remote I/O module","通讯/远程模块"]
[]
[]
[null,"電源模組","POWER MODULE"]
["AS-PS02","24VDC, 2A, 僅供PLC使用","Power supply module, 24VDC, 2A: for internal use only (CPU and the modules)"]
["AS-PS02A","24VDC, 1.5A(供PLC使用), 0.5A(供外部使用)","Power supply module, 24VDC, output: 1.5A (for internal use: CPU and the modules), 0.5A (for external use)"]
[]
[]
[]
[]
[]
[null,"電纜線與配線板"]
["UC-ET010-24B","40Pin <--> 40Pin, 1米長, 帶屏蔽線","40Pin ↔ 40Pin, 1M long, shielded I/O extension cable","40Pin <--> 40Pin, 1米长, 带屏蔽线"]
["UC-ET020-24B","40Pin <--> 40Pin, 2米長, 帶屏蔽線","40Pin ↔ 40Pin, 2M long, shielded I/O extension cable","40Pin <--> 40Pin, 2米长, 带屏蔽线"]
["UC-ET030-24B","40Pin <--> 40Pin, 3米長, 帶屏蔽線","40Pin ↔ 40Pin, 3M long, shielded I/O extension cable","40Pin <--> 40Pin, 3米长, 带屏蔽线"]
["UC-ET010-24D","40Pin <--> 20Pin x2, 1米長, 帶屏蔽線","40Pin ↔ 2x 20Pin, 1M long, shielded I/O extension cable","40Pin <--> 20Pin x2, 1米长, 带屏蔽线"]
["UC-ET020-24D","40Pin <--> 20Pin x2, 2米長, 帶屏蔽線","40Pin ↔ 2x 20Pin, 2M long, shielded I/O extension cable","40Pin <--> 20Pin x2, 2米长, 带屏蔽线"]
["UC-ET030-24D","40Pin <--> 20Pin x2, 3米長, 帶屏蔽線","40Pin ↔ 2x 20Pin, 3M long, shielded I/O extension cable","40Pin <--> 20Pin x2, 3米长, 带屏蔽线"]
["UB-10-ID16A","20Pin<-->16點輸入或輸出, 無共點配置","20Pin ↔ 16 independant inputs/outputs external terminal moudule","20Pin<-->16点输入或输出, 无共点配置"]
["UB-10-ID32A","40Pin<-->32點輸入,  輸入共點已連線","40Pin ↔ 32 inputs external terminal moudule","40Pin<-->32点输入,  输入共点已联机"]
["UB-10-OT32A","40Pin<-->32點輸出,  輸出共點已連線","40Pin ↔ 32 outputs external terminal moudule","40Pin<-->32点输出,  输出共点已联机"]
["UB-10-OR16A","20Pin<-->16點繼電器輸出, 需搭配NPN輸出模組","20Pin ↔ 16 relay outputs for NPN output modules","20Pin<-->16点继电器输出, 需搭配NPN输出模块"]
["UB-10-OR16B","20Pin<-->16點繼電器輸出, 需搭配PNP輸出模組","20Pin ↔ 16 relay outputs for PNP output modules","20Pin<-->16点继电器输出, 需搭配PNP输出模块"]
[]
[]
[]
[]
[]
[]
[]
[]
[null,"端子轉接座","Terminal Adapter"]
["UB-10-IO32D","適用於40Pin高密度(MIL)端子座轉接用","for 40pin MIL high-density terminal block","适用於40Pin高密度(MIL)端子座转接用"]
[]
[]
[]
[]
["AS-ATXB","DC電源輸入轉接板","DC power supply input terminal block","DC电源输入转接板"]

{"sheet":"機種清單","index":5,"n_rows":49,"n_cols":12,"rows_kept":49,"cut":false,"hidden":true,"merged":[[36,0,37,0],[38,0,43,0],[44,0,48,0],[0,0,0,3],[2,0,4,0],[5,0,10,0],[11,0,25,0],[26,0,31,0],[33,0,35,0]]}
["AS系列所有機種清單與選型條件清單"]
["模組類別","機種名稱","產品特色說明","DI點數","DO點數","輸出點類型","AI通道數","AO通道數","電纜線","延伸配線板","延伸配線板輸出型式","遠端模組"]
["CPU","AS332T-A",{"$f":"IF('Setting Parameters'!L1=\"ENG\",VLOOKUP(B3:B49,ProLangTable,3,0),VLOOKUP(B3:B49,ProLangTable,2,0))","v":"128K Step, 6軸高速輸出(開集極NPN輸出), 6組高速計數器，內建SD Card、USB與乙太網口"},16,16,"NPN",null,null,1,2]
[null,"AS332P-A",{"$f":"IF('Setting Parameters'!L$1=\"ENG\",VLOOKUP(B$3:B$49,ProLangTable,3,0),VLOOKUP(B$3:B$49,ProLangTable,2,0))","v":"128K Step, 6軸高速輸出(開集極PNP輸出), 6組高速計數器，內建SD Card、USB與乙太網口"},16,16,"PNP",null,null,1,2]
[null,"AS324MT-A",{"$f":"IF('Setting Parameters'!L$1=\"ENG\",VLOOKUP(B$3:B$49,ProLangTable,3,0),VLOOKUP(B$3:B$49,ProLangTable,2,0))","v":"128K Step, 6軸高速輸出(差動輸出2軸+開集極NPN輸出4軸), 6組高速計數器(其中差動輸入2組)，內建SD Card、USB與乙太網口"},12,12,"Diff. + NPN",null,null,1,2]
["Function Card","AS-F232",{"$f":"IF('Setting Parameters'!L$1=\"ENG\",VLOOKUP(B$3:B$49,ProLangTable,3,0),VLOOKUP(B$3:B$49,ProLangTable,2,0))","v":"RS232通訊卡"}]
[null,"AS-F422",{"$f":"IF('Setting Parameters'!L$1=\"ENG\",VLOOKUP(B$3:B$49,ProLangTable,3,0),VLOOKUP(B$3:B$49,ProLangTable,2,0))","v":"RS422通訊卡"}]
[null,"AS-F485",{"$f":"IF('Setting Parameters'!L$1=\"ENG\",VLOOKUP(B$3:B$49,ProLangTable,3,0),VLOOKUP(B$3:B$49,ProLangTable,2,0))","v":"RS485通訊卡"}]
[null,"AS-F2AD",{"$f":"IF('Setting Parameters'!L$1=\"ENG\",VLOOKUP(B$3:B$49,ProLangTable,3,0),VLOOKUP(B$3:B$49,ProLangTable,2,0))","v":"2通道類比輸入卡"}]
[null,"AS-F2DA",{"$f":"IF('Setting Parameters'!L$1=\"ENG\",VLOOKUP(B$3:B$49,ProLangTable,3,0),VLOOKUP(B$3:B$49,ProLangTable,2,0))","v":"2通道類比輸出卡"}]
[null,"AS-FCOPM",{"$f":"IF('Setting Parameters'!L$1=\"ENG\",VLOOKUP(B$3:B$49,ProLangTable,3,0),VLOOKUP(B$3:B$49,ProLangTable,2,0))","v":"CANOpen通訊卡"}]
["DIO","AS08AM10N-A",{"$f":"IF('Setting Parameters'!L$1=\"ENG\",VLOOKUP(B$3:B$49,ProLangTable,3,0),VLOOKUP(B$3:B$49,ProLangTable,2,0))","v":"輸入點模組(8點數位輸入)"},8]
[null,"AS08AN01T-A",{"$f":"IF('Setting Parameters'!L$1=\"ENG\",VLOOKUP(B$3:B$49,ProLangTable,3,0),VLOOKUP(B$3:B$49,ProLangTable,2,0))","v":"輸出點模組(NPN晶體輸出)(8點數位輸出)"},null,8,"NPN"]
[null,"AS08AN01P-A",{"$f":"IF('Setting Parameters'!L$1=\"ENG\",VLOOKUP(B$3:B$49,ProLangTable,3,0),VLOOKUP(B$3:B$49,ProLangTable,2,0))","v":"輸出點模組(PNP晶體輸出)(8點數位輸出)"},null,8,"PNP"]
[null,"AS08AN01R-A",{"$f":"IF('Setting Parameters'!L$1=\"ENG\",VLOOKUP(B$3:B$49,ProLangTable,3,0),VLOOKUP(B$3:B$49,ProLangTable,2,0))","v":"輸出點模組(繼電器輸出)(8點數位輸出)"},null,8,"Relay"]
[null,"AS16AM10N-A",{"$f":"IF('Setting Parameters'!L$1=\"ENG\",VLOOKUP(B$3:B$49,ProLangTable,3,0),VLOOKUP(B$3:B$49,ProLangTable,2,0))","v":"輸入點模組(16點數位輸入)"},16]
[null,"AS16AP11T-A",{"$f":"IF('Setting Parameters'!L$1=\"ENG\",VLOOKUP(B$3:B$49,ProLangTable,3,0),VLOOKUP(B$3:B$49,ProLangTable,2,0))","v":"輸入/輸出點模組(NPN晶體輸出)(8點數位輸出,8點數位輸入)"},8,8,"NPN"]
[null,"AS16AP11P-A",{"$f":"IF('Setting Parameters'!L$1=\"ENG\",VLOOKUP(B$3:B$49,ProLangTable,3,0),VLOOKUP(B$3:B$49,ProLangTable,2,0))","v":"輸入/輸出點模組(PNP晶體輸出)(8點數位輸出,8點數位輸入)"},8,8,"PNP"]
[null,"AS16AP11R-A",{"$f":"IF('Setting Parameters'!L$1=\"ENG\",VLOOKUP(B$3:B$49,ProLangTable,3,0),VLOOKUP(B$3:B$49,ProLangTable,2,0))","v":"輸入/輸出點模組(繼電器輸出)(8點數位輸出,8點數位輸入)"},8,8,"Relay"]
[null,"AS16AN01T-A",{"$f":"IF('Setting Parameters'!L$1=\"ENG\",VLOOKUP(B$3:B$49,ProLangTable,3,0),VLOOKUP(B$3:B$49,ProLangTable,2,0))","v":"輸出點模組(NPN晶體輸出)(16點數位輸出)"},null,16,"NPN"]
[null,"AS16AN01P-A",{"$f":"IF('Setting Parameters'!L$1=\"ENG\",VLOOKUP(B$3:B$49,ProLangTable,3,0),VLOOKUP(B$3:B$49,ProLangTable,2,0))","v":"輸出點模組(PNP晶體輸出)(16點數位輸出)"},null,16,"PNP"]
[null,"AS16AN01R-A",{"$f":"IF('Setting Parameters'!L$1=\"ENG\",VLOOKUP(B$3:B$49,ProLangTable,3,0),VLOOKUP(B$3:B$49,ProLangTable,2,0))","v":"輸出點模組(繼電器輸出)(16點數位輸出)"},null,16,"Relay"]
[null,"AS32AM10N-A",{"$f":"IF('Setting Parameters'!L$1=\"ENG\",VLOOKUP(B$3:B$49,ProLangTable,3,0),VLOOKUP(B$3:B$49,ProLangTable,2,0))","v":"輸入點模組(32點數位輸入)"},32,null,null,null,null,1,1]
[null,"AS32AN02T-A",{"$f":"IF('Setting Parameters'!L$1=\"ENG\",VLOOKUP(B$3:B$49,ProLangTable,3,0),VLOOKUP(B$3:B$49,ProLangTable,2,0))","v":"輸出點模組(NPN晶體輸出)(32點數位輸出)"},null,32,"NPN",null,null,1,2]
[null,"AS64AM10N-A",{"$f":"IF('Setting Parameters'!L$1=\"ENG\",VLOOKUP(B$3:B$49,ProLangTable,3,0),VLOOKUP(B$3:B$49,ProLangTable,2,0))","v":"輸入點模組(64點數位輸入)"},64,null,null,null,null,2,2]
[null,"AS64AN02T-A",{"$f":"IF('Setting Parameters'!L$1=\"ENG\",VLOOKUP(B$3:B$49,ProLangTable,3,0),VLOOKUP(B$3:B$49,ProLangTable,2,0))","v":"輸出點模組(NPN晶體輸出)(64點數位輸出)"},null,64,"NPN",null,null,2,4]
["AIO","AS04AD-A",{"$f":"IF('Setting Parameters'!L$1=\"ENG\",VLOOKUP(B$3:B$49,ProLangTable,3,0),VLOOKUP(B$3:B$49,ProLangTable,2,0))","v":"類比輸入模組, 16bit解析度(4通道類比輸入)"},null,null,null,4]
[null,"AS04DA-A",{"$f":"IF('Setting Parameters'!L$1=\"ENG\",VLOOKUP(B$3:B$49,ProLangTable,3,0),VLOOKUP(B$3:B$49,ProLangTable,2,0))","v":"類比輸出模組, 12bit解析度(4通道類比輸出)"},null,null,null,null,4]
[null,"AS06XA-A",{"$f":"IF('Setting Parameters'!L$1=\"ENG\",VLOOKUP(B$3:B$49,ProLangTable,3,0),VLOOKUP(B$3:B$49,ProLangTable,2,0))","v":"類比輸入(16bit)/輸出(12bit)模組(4通道類比輸入，2通道類比輸出)"},null,null,null,4,2]
[null,"AS04RTD-A",{"$f":"IF('Setting Parameters'!L$1=\"ENG\",VLOOKUP(B$3:B$49,ProLangTable,3,0),VLOOKUP(B$3:B$49,ProLangTable,2,0))","v":"溫度模組, PT, NI (4通道類比輸入)"},null,null,null,4]
[null,"AS04TC-A",{"$f":"IF('Setting Parameters'!L$1=\"ENG\",VLOOKUP(B$3:B$49,ProLangTable,3,0),VLOOKUP(B$3:B$49,ProLangTable,2,0))","v":"溫度模組(4通道類比輸入)"},null,null,null,4]
[null,"AS02LC-A",{"$f":"IF('Setting Parameters'!L$1=\"ENG\",VLOOKUP(B$3:B$49,ProLangTable,3,0),VLOOKUP(B$3:B$49,ProLangTable,2,0))","v":"秤重模組(2通道類比輸入)"},null,null,null,2]
["NIO","AS00SCM-A",{"$f":"IF('Setting Parameters'!L$1=\"ENG\",VLOOKUP(B$3:B$49,ProLangTable,3,0),VLOOKUP(B$3:B$49,ProLangTable,2,0))","v":"通訊/遠端模組"}]
["PIO","AS04PU-A",{"$f":"IF('Setting Parameters'!L$1=\"ENG\",VLOOKUP(B$3:B$49,ProLangTable,3,0),VLOOKUP(B$3:B$49,ProLangTable,2,0))","v":{"$error":"#N/A"}}]
[null,"AS02PU-A",{"$f":"IF('Setting Parameters'!L$1=\"ENG\",VLOOKUP(B$3:B$49,ProLangTable,3,0),VLOOKUP(B$3:B$49,ProLangTable,2,0))","v":{"$error":"#N/A"}}]
[null,"AS02HC-A",{"$f":"IF('Setting Parameters'!L$1=\"ENG\",VLOOKUP(B$3:B$49,ProLangTable,3,0),VLOOKUP(B$3:B$49,ProLangTable,2,0))","v":{"$error":"#N/A"}}]
["POWER","AS-PS02",{"$f":"IF('Setting Parameters'!L$1=\"ENG\",VLOOKUP(B$3:B$49,ProLangTable,3,0),VLOOKUP(B$3:B$49,ProLangTable,2,0))","v":"24VDC, 2A, 僅供PLC使用"}]
[null,"AS-PS02A",{"$f":"IF('Setting Parameters'!L$1=\"ENG\",VLOOKUP(B$3:B$49,ProLangTable,3,0),VLOOKUP(B$3:B$49,ProLangTable,2,0))","v":"24VDC, 1.5A(供PLC使用), 0.5A(供外部使用)"}]
["配件-電纜線","UC-ET010-24B",{"$f":"IF('Setting Parameters'!L$1=\"ENG\",VLOOKUP(B$3:B$49,ProLangTable,3,0),VLOOKUP(B$3:B$49,ProLangTable,2,0))","v":"40Pin <--> 40Pin, 1米長, 帶屏蔽線"}]
[null,"UC-ET020-24B",{"$f":"IF('Setting Parameters'!L$1=\"ENG\",VLOOKUP(B$3:B$49,ProLangTable,3,0),VLOOKUP(B$3:B$49,ProLangTable,2,0))","v":"40Pin <--> 40Pin, 2米長, 帶屏蔽線"}]
[null,"UC-ET030-24B",{"$f":"IF('Setting Parameters'!L$1=\"ENG\",VLOOKUP(B$3:B$49,ProLangTable,3,0),VLOOKUP(B$3:B$49,ProLangTable,2,0))","v":"40Pin <--> 40Pin, 3米長, 帶屏蔽線"}]
[null,"UC-ET010-24D",{"$f":"IF('Setting Parameters'!L$1=\"ENG\",VLOOKUP(B$3:B$49,ProLangTable,3,0),VLOOKUP(B$3:B$49,ProLangTable,2,0))","v":"40Pin <--> 20Pin x2, 1米長, 帶屏蔽線"}]
[null,"UC-ET020-24D",{"$f":"IF('Setting Parameters'!L$1=\"ENG\",VLOOKUP(B$3:B$49,ProLangTable,3,0),VLOOKUP(B$3:B$49,ProLangTable,2,0))","v":"40Pin <--> 20Pin x2, 2米長, 帶屏蔽線"}]
[null,"UC-ET030-24D",{"$f":"IF('Setting Parameters'!L$1=\"ENG\",VLOOKUP(B$3:B$49,ProLangTable,3,0),VLOOKUP(B$3:B$49,ProLangTable,2,0))","v":"40Pin <--> 20Pin x2, 3米長, 帶屏蔽線"}]
["配件-配線板","UB-10-ID16A",{"$f":"IF('Setting Parameters'!L$1=\"ENG\",VLOOKUP(B$3:B$49,ProLangTable,3,0),VLOOKUP(B$3:B$49,ProLangTable,2,0))","v":"20Pin<-->16點輸入或輸出, 無共點配置"}]
[null,"UB-10-ID32A",{"$f":"IF('Setting Parameters'!L$1=\"ENG\",VLOOKUP(B$3:B$49,ProLangTable,3,0),VLOOKUP(B$3:B$49,ProLangTable,2,0))","v":"40Pin<-->32點輸入,  輸入共點已連線"}]
[null,"UB-10-OT32A",{"$f":"IF('Setting Parameters'!L$1=\"ENG\",VLOOKUP(B$3:B$49,ProLangTable,3,0),VLOOKUP(B$3:B$49,ProLangTable,2,0))","v":"40Pin<-->32點輸出,  輸出共點已連線"}]
[null,"UB-10-OR16A",{"$f":"IF('Setting Parameters'!L$1=\"ENG\",VLOOKUP(B$3:B$49,ProLangTable,3,0),VLOOKUP(B$3:B$49,ProLangTable,2,0))","v":"20Pin<-->16點繼電器輸出, 需搭配NPN輸出模組"},null,null,null,null,null,null,null,"Relay"]
[null,"UB-10-OR16B",{"$f":"IF('Setting Parameters'!L$1=\"ENG\",VLOOKUP(B$3:B$49,ProLangTable,3,0),VLOOKUP(B$3:B$49,ProLangTable,2,0))","v":"20Pin<-->16點繼電器輸出, 需搭配PNP輸出模組"},null,null,null,null,null,null,null,"Relay"]

{"sheet":"Language Mapping","index":6,"n_rows":39,"n_cols":3,"rows_kept":39,"cut":false,"hidden":true,"merged":[]}
["ENG","繁中","簡中"]
["Delta AS Series PLC Selection Tool V1.0","台達 AS系列 PLC CPU 選型工具 V1.0","台达 AS300 PLC CPU 选型工具 V1.04"]
["Disclaimer: This selection tool is intended to support users in finding the appropriate products and no warranties are made as to its accuracy or reliability. Users should confirm the search result before any purchases are made.","免責聲明: 本工具提供的結果僅提供參考，針對內容的正確性並不負責與保證，使用者在訂購之前仍需進行確認。","免责声明: 本工具提供的结果仅提供参考，针对内容的正确性并不负责与保证，使用者在订购之前仍需进行确认。"]
["Product Selection","產品選擇","产品选择"]
["CPU Module","主機","主机"]
["Which CPU module series is required?","您喜好哪系列的主機？","您想要哪系列的主机？"]
["What type of CPU module is required?","您喜好哪類型的主機？","您想要哪类型的主机？"]
["Do you need suggestions on the accessory selection for the connection of the CPU and the Module? ","主機與模組是否自動配置配件？","主机与模块是否自动配置配件？"]
["Power Module","電源模組","电源模块"]
["What type of power is required?","您喜好哪類型的電源？","您想要哪类型的电源？"]
["DI/DO Module","數位輸入與輸出模組","数字输入与输出模块"]
["Which combination of the digital I/O points is required? ","您想要優先選擇的輸入輸出點組合？","您想要优先选择的输入输出点组合？"]
["How many digital input points are required?","您總共需要多少數位輸入點？","您总共需要多少数字输入点？"]
["How many digital output points are required? (NPN Type)","您總共需要多少數位輸出點(NPN型)？","您总共需要多少数字输出点(NPN型)？"]
["How many digital output points are required? (PNP Type)","您總共需要多少數位輸出點(PNP型)？","您总共需要多少数字输出点(PNP型)？"]
["How many digital output points are required? (Relay Type)","您總共需要多少數位輸出點(繼電器型)？","您总共需要多少数字输出点(继电器型)？"]
["How many I/O points are required on one module?","您接受多少點的模組？","您接受多少点的模块？"]
["AI/AO Module","類比輸入與輸出模組","模拟输入与输出模块"]
["Which combination of the analog I/O points is required? ","您想要優先選擇的類比輸入輸出組合？","您想要优先选择的模拟输入输出组合？"]
["How many channels are required for one analog input module?","您總共需要多少通道的類比輸入模組？","您总共需要多少通道的模拟输入模块？"]
["How many channels are required for one analog output module?","您總共需要多少通道的類比輸出模組？","您总共需要多少通道的模拟输出模块？"]
["How many channels are required for one analog module?","您接受多少通道的模組？","您接受多少通道的模块？"]
["Temperature Module","溫度模組","温度模块"]
["How many channels are required for one RTD temperature module?","您總共需要多少通道的RTD溫度模組？","您总共需要多少通道的RTD温度模块？"]
["How many channels are required for one TC temperature module?","您總共需要多少通道的TC溫度模組？","您总共需要多少通道的TC温度模块？"]
["How many channels are required for one temperature module?","您接受多少通道的模組？","您接受多少通道的模块？"]
["How many channels are required for one temperature module? (TC Type)","您接受多少通道的模組？（針對TC）","您接受多少通道的模块？（针对TC）"]
["Load Cell Module","秤重模組","称重模块"]
["How many channels are required for one load cell module?","您總共需要多少通道的秤重模組？","您总共需要多少通道的称重模块？"]
["Serial Communication Module","通訊模組","通讯模块"]
["How many modules are required when using the AS series PLC?","選用AS系列近端的通訊模組需幾台模組？","选用AS系列近端的通讯模块需几台模块？"]
["How many modules are required when using the AS series remote PLC?","選用AS系列遠端的通訊模組需幾台模組？","选用AS系列远程的通讯模块需几台模块？"]
["Remote Module","遠端模組系統配置","远程模块系统配置"]
["RIO Setting Parameters","RIO設定參數","RIO设定参数"]
["Which of the communication protocol is required?","您喜好哪種通訊協定？","您喜好哪种通讯协议？"]
["Product Features ","產品特色說明","产品特色说明"]
["Select the Function Card 1","選擇配置功能卡1","选择配置功能卡1"]
["Select the Function Card 2","選擇配置功能卡2","选择配置功能卡2"]
["Remote Module Selection","遠端模組配置選擇","远程模块配置选择"]